[Event "Titled Tuesday Blitz March 29 Early 2022"]
[White "Lagunov, Evgenij"]
[Black "Srinath, Rao S.V."]
[WhiteFideId "4125363"]
[BlackFideId "5028876"]
[WhiteElo "2200"]
[BlackElo "2181"]
[Result "0-1"]
[Round "04"]
[TimeControl "180+1"]
[Date "2022.03.30"]
[WhiteClock "0:00:01"]
[BlackClock "0:00:46"]

1. e4 {[%clk 0:03:00]}  e6 {[%clk 0:02:57]} 2. d4 {[%clk 0:02:59]}  d5 {[%clk 0:02:58]} 3. e5 {[%clk 0:02:59]}  c5 {[%clk 0:02:57]} 4. c3 {[%clk 0:02:59]}  Nc6 {[%clk 0:02:58]} 5. Nf3 {[%clk 0:02:57]}  Bd7 {[%clk 0:02:58]} 6. a3 {[%clk 0:02:56]}  c4 {[%clk 0:02:57]} 7. Be2 {[%clk 0:02:49]}  Nge7 {[%clk 0:02:57]} 8. Nbd2 {[%clk 0:02:47]}  Nc8 {[%clk 0:02:57]} 9. O-O {[%clk 0:02:44]}  Nb6 {[%clk 0:02:57]} 10. b4 {[%clk 0:02:43]}  cxb3 {[%clk 0:02:56]} 11. Nxb3 {[%clk 0:02:42]}  Be7 {[%clk 0:02:55]} 12. Nc5 {[%clk 0:02:38]}  O-O {[%clk 0:02:54]} 13. Nxd7 {[%clk 0:02:36]}  Nxd7 {[%clk 0:02:53]} 14. Bd3 {[%clk 0:02:32]}  Rc8 {[%clk 0:02:52]} 15. a4 {[%clk 0:02:28]}  Na5 {[%clk 0:02:48]} 16. Qc2 {[%clk 0:02:18]}  f5 {[%clk 0:02:41]} 17. exf6 {[%clk 0:02:17]}  Nxf6 {[%clk 0:02:41]} 18. Bg5 {[%clk 0:02:15]}  h6 {[%clk 0:02:38]} 19. Bh4 {[%clk 0:02:05]}  Qc7 {[%clk 0:02:36]} 20. Rfc1 {[%clk 0:01:55]}  Bd6 {[%clk 0:02:35]} 21. Bg3 {[%clk 0:01:48]}  Nc4 {[%clk 0:02:33]} 22. Qe2 {[%clk 0:01:37]}  Rfe8 {[%clk 0:02:27]} 23. Ne5 {[%clk 0:01:29]}  Bxe5 {[%clk 0:02:25]} 24. dxe5 {[%clk 0:01:28]}  Nd7 {[%clk 0:02:24]} 25. Re1 {[%clk 0:01:24]}  Nc5 {[%clk 0:02:22]} 26. Bc2 {[%clk 0:01:21]}  Qa5 {[%clk 0:02:18]} 27. Qh5 {[%clk 0:01:15]}  Qxc3 {[%clk 0:02:14]} 28. Qg6 {[%clk 0:01:12]}  Ne4 {[%clk 0:02:02]} 29. Rac1 {[%clk 0:01:09]}  Nxe5 {[%clk 0:01:53]} 30. Bxe5 {[%clk 0:01:05]}  Qxe5 {[%clk 0:01:53]} 31. Bxe4 {[%clk 0:00:47]}  Qxe4 {[%clk 0:01:52]} 32. Qg3 {[%clk 0:00:34]}  d4 {[%clk 0:01:42]} 33. h3 {[%clk 0:00:30]}  Qf5 {[%clk 0:01:39]} 34. Qd6 {[%clk 0:00:23]}  d3 {[%clk 0:01:37]} 35. Rcd1 {[%clk 0:00:20]}  Rcd8 {[%clk 0:01:36]} 36. Qg3 {[%clk 0:00:16]}  e5 {[%clk 0:01:30]} 37. f3 {[%clk 0:00:14]}  d2 {[%clk 0:01:27]} 38. Re4 {[%clk 0:00:14]}  Rd7 {[%clk 0:01:23]} 39. Qf2 {[%clk 0:00:13]}  Red8 {[%clk 0:01:21]} 40. Qxa7 {[%clk 0:00:12]}  Rd4 {[%clk 0:01:20]} 41. Qxb7 {[%clk 0:00:09]}  R8d7 {[%clk 0:01:06]} 42. Qb3+ {[%clk 0:00:08]}  Kh7 {[%clk 0:01:05]} 43. Qe3 {[%clk 0:00:07]}  Rd3 {[%clk 0:01:02]} 44. Qe2 {[%clk 0:00:07]}  Qf6 {[%clk 0:00:58]} 45. Rxe5 {[%clk 0:00:07]}  Qb6+ {[%clk 0:00:58]} 46. Kh1 {[%clk 0:00:05]}  Qc6 {[%clk 0:00:54]} 47. Re4 {[%clk 0:00:03]}  Qc1 {[%clk 0:00:52]} 48. Rg4 {[%clk 0:00:02]}  Qxd1+ {[%clk 0:00:46]} 49. Qxd1 {[%clk 0:00:01]}  Rc7 {[%clk 0:00:46]} 0-1


[Site "https://www.chess.com"]

[Event "Titled Tuesday Blitz March 29 Early 2022"]
[White "Ljukin, Sergei"]
[Black "Weetik, Vjacheslav"]
[WhiteFideId "14102200"]
[BlackFideId "4153472"]
[WhiteElo "2552"]
[BlackElo "2746"]
[Result "0-1"]
[Round "04"]
[TimeControl "180+1"]
[Date "2022.03.30"]
[WhiteClock "0:00:11"]
[BlackClock "0:00:02"]

1. e4 {[%clk 0:02:54]}  c6 {[%clk 0:02:59]} 2. d4 {[%clk 0:02:53]}  d5 {[%clk 0:02:59]} 3. e5 {[%clk 0:02:54]}  Bf5 {[%clk 0:02:59]} 4. Nd2 {[%clk 0:02:54]}  e6 {[%clk 0:03:00]} 5. Nb3 {[%clk 0:02:54]}  Nd7 {[%clk 0:03:00]} 6. Nf3 {[%clk 0:02:55]}  Bg6 {[%clk 0:02:57]} 7. Be2 {[%clk 0:02:55]}  Nh6 {[%clk 0:02:57]} 8. Bxh6 {[%clk 0:02:53]}  gxh6 {[%clk 0:02:57]} 9. h4 {[%clk 0:02:42]}  Rg8 {[%clk 0:02:48]} 10. h5 {[%clk 0:02:40]}  Be4 {[%clk 0:02:48]} 11. Rh2 {[%clk 0:02:19]}  Qb6 {[%clk 0:02:44]} 12. Nh4 {[%clk 0:02:12]}  Be7 {[%clk 0:02:08]} 13. f3 {[%clk 0:02:11]}  Bf5 {[%clk 0:01:34]} 14. g4 {[%clk 0:02:08]}  Nxe5 {[%clk 0:01:33]} 15. gxf5 {[%clk 0:02:00]}  Rg1+ {[%clk 0:01:26]} 16. Bf1 {[%clk 0:02:00]}  O-O-O {[%clk 0:00:53]} 17. dxe5 {[%clk 0:01:49]}  Qb4+ {[%clk 0:00:49]} 18. c3 {[%clk 0:01:17]}  Bxh4+ {[%clk 0:00:48]} 19. Ke2 {[%clk 0:01:17]}  Qf4 {[%clk 0:00:43]} 20. Rh3 {[%clk 0:01:07]}  Qxe5+ {[%clk 0:00:39]} 21. Kd2 {[%clk 0:00:57]}  Qxf5 {[%clk 0:00:24]} 22. Qe2 {[%clk 0:00:42]}  Bg5+ {[%clk 0:00:19]} 23. Ke1 {[%clk 0:00:39]}  Qxh3 {[%clk 0:00:19]} 24. Nd2 {[%clk 0:00:20]}  Qg3+ {[%clk 0:00:16]} 25. Kd1 {[%clk 0:00:20]}  Qf4 {[%clk 0:00:07]} 26. Nb3 {[%clk 0:00:20]}  e5 {[%clk 0:00:06]} 27. Nc5 {[%clk 0:00:18]}  d4 {[%clk 0:00:04]} 28. Nd3 {[%clk 0:00:16]}  dxc3 {[%clk 0:00:04]} 29. bxc3 {[%clk 0:00:16]}  Qa4+ {[%clk 0:00:05]} 30. Ke1 {[%clk 0:00:15]}  Bh4+ {[%clk 0:00:05]} 31. Kd2 {[%clk 0:00:16]}  Bg5+ {[%clk 0:00:04]} 32. Ke1 {[%clk 0:00:16]}  Qh4+ {[%clk 0:00:03]} 33. Kd1 {[%clk 0:00:16]}  Kb8 {[%clk 0:00:03]} 34. Kc2 {[%clk 0:00:15]}  Qa4+ {[%clk 0:00:03]} 35. Kb2 {[%clk 0:00:14]}  Qb5+ {[%clk 0:00:03]} 36. Kc2 {[%clk 0:00:15]}  e4 {[%clk 0:00:03]} 37. fxe4 {[%clk 0:00:14]}  Qa4+ {[%clk 0:00:03]} 38. Kb2 {[%clk 0:00:14]}  Be7 {[%clk 0:00:03]} 39. Rb1 {[%clk 0:00:14]}  Qa3+ {[%clk 0:00:03]} 40. Kc2 {[%clk 0:00:14]}  Qxa2+ {[%clk 0:00:04]} 41. Rb2 {[%clk 0:00:15]}  Qa4+ {[%clk 0:00:04]} 42. Kb1 {[%clk 0:00:15]}  Rg5 {[%clk 0:00:04]} 43. Nb4 {[%clk 0:00:14]}  Ra5 {[%clk 0:00:03]} 44. Na6+ {[%clk 0:00:11]}  Rxa6 {[%clk 0:00:02]} 45. Qxa6 {[%clk 0:00:11]}  Rd1# {[%clk 0:00:02]} 0-1


[Site "https://www.chess.com"]

[Event "Titled Tuesday Blitz March 29 Early 2022"]
[White "Majdan, Joanna"]
[Black "Ianov, Viktor"]
[WhiteFideId "1121979"]
[BlackFideId "14102730"]
[WhiteElo "2234"]
[BlackElo "2161"]
[Result "1/2-1/2"]
[Round "04"]
[TimeControl "180+1"]
[Date "2022.03.30"]
[WhiteClock "0:00:20"]
[BlackClock "0:00:19"]

1. e4 {[%clk 0:03:00]}  d6 {[%clk 0:02:59]} 2. d4 {[%clk 0:03:00]}  Nf6 {[%clk 0:02:59]} 3. Nc3 {[%clk 0:03:00]}  c6 {[%clk 0:02:59]} 4. f4 {[%clk 0:03:01]}  Qb6 {[%clk 0:02:59]} 5. Be2 {[%clk 0:02:53]}  g6 {[%clk 0:02:56]} 6. Nf3 {[%clk 0:02:52]}  Bg4 {[%clk 0:02:55]} 7. O-O {[%clk 0:02:50]}  Nbd7 {[%clk 0:02:53]} 8. Kh1 {[%clk 0:02:44]}  Bg7 {[%clk 0:02:52]} 9. e5 {[%clk 0:02:44]}  Nd5 {[%clk 0:02:46]} 10. Ne4 {[%clk 0:02:31]}  dxe5 {[%clk 0:02:41]} 11. fxe5 {[%clk 0:02:28]}  O-O {[%clk 0:02:32]} 12. c3 {[%clk 0:02:19]}  f6 {[%clk 0:02:28]} 13. exf6 {[%clk 0:01:57]}  exf6 {[%clk 0:02:27]} 14. h3 {[%clk 0:01:45]}  Be6 {[%clk 0:02:20]} 15. c4 {[%clk 0:01:25]}  Ne7 {[%clk 0:02:16]} 16. b3 {[%clk 0:01:22]}  Nf5 {[%clk 0:02:06]} 17. d5 {[%clk 0:01:20]}  cxd5 {[%clk 0:02:03]} 18. cxd5 {[%clk 0:01:21]}  Bf7 {[%clk 0:02:02]} 19. Bf4 {[%clk 0:01:18]}  Rfe8 {[%clk 0:01:54]} 20. Qd3 {[%clk 0:01:14]}  Nc5 {[%clk 0:01:42]} 21. Nxc5 {[%clk 0:01:12]}  Qxc5 {[%clk 0:01:42]} 22. Rfd1 {[%clk 0:01:09]}  Rad8 {[%clk 0:01:30]} 23. d6 {[%clk 0:01:10]}  Qf2 {[%clk 0:01:22]} 24. Bf1 {[%clk 0:00:59]}  Ng3+ {[%clk 0:01:20]} 25. Bxg3 {[%clk 0:00:59]}  Qxg3 {[%clk 0:01:20]} 26. Rac1 {[%clk 0:00:57]}  Bf8 {[%clk 0:01:05]} 27. d7 {[%clk 0:00:57]}  Re7 {[%clk 0:01:03]} 28. Rc8 {[%clk 0:00:57]}  Rdxd7 {[%clk 0:00:58]} 29. Qxd7 {[%clk 0:00:52]}  Rxd7 {[%clk 0:00:58]} 30. Rxd7 {[%clk 0:00:53]}  Qf2 {[%clk 0:00:49]} 31. Bc4 {[%clk 0:00:49]}  Bxc4 {[%clk 0:00:48]} 32. bxc4 {[%clk 0:00:49]}  Qxa2 {[%clk 0:00:44]} 33. Nd4 {[%clk 0:00:38]}  Qb1+ {[%clk 0:00:37]} 34. Kh2 {[%clk 0:00:38]}  Qe4 {[%clk 0:00:37]} 35. Rdd8 {[%clk 0:00:29]}  Qf4+ {[%clk 0:00:36]} 36. Kg1 {[%clk 0:00:27]}  Qe3+ {[%clk 0:00:35]} 37. Kf1 {[%clk 0:00:26]}  Kg7 {[%clk 0:00:34]} 38. Rd7+ {[%clk 0:00:22]}  Kh6 {[%clk 0:00:21]} 39. Rxf8 {[%clk 0:00:21]}  Qd3+ {[%clk 0:00:20]} 40. Kg1 {[%clk 0:00:19]}  Qe3+ {[%clk 0:00:19]} 41. Kh2 {[%clk 0:00:19]}  Qf4+ {[%clk 0:00:19]} 42. Kg1 {[%clk 0:00:19]}  Qe3+ {[%clk 0:00:19]} 43. Kh2 {[%clk 0:00:19]}  Qf4+ {[%clk 0:00:19]} 44. Kg1 {[%clk 0:00:20]}  Qe3+ {[%clk 0:00:19]} 1/2-1/2


[Site "https://www.chess.com"]

[Event "Titled Tuesday Blitz March 29 Early 2022"]
[White "Martin Duque, Jesus"]
[Black "Pein, Jonathan"]
[WhiteFideId "2208954"]
[BlackFideId "417092"]
[WhiteElo "2243"]
[BlackElo "2140"]
[Result "1-0"]
[Round "04"]
[TimeControl "180+1"]
[Date "2022.03.30"]
[WhiteClock "0:02:36"]
[BlackClock "0:01:15"]

1. Nf3 {[%clk 0:02:56]}  d5 {[%clk 0:02:53]} 2. b3 {[%clk 0:02:57]}  c5 {[%clk 0:02:52]} 3. e3 {[%clk 0:02:56]}  Nc6 {[%clk 0:02:53]} 4. Bb5 {[%clk 0:02:57]}  Bd7 {[%clk 0:02:53]} 5. c4 {[%clk 0:02:57]}  dxc4 {[%clk 0:02:52]} 6. bxc4 {[%clk 0:02:56]}  Nf6 {[%clk 0:02:52]} 7. O-O {[%clk 0:02:57]}  a6 {[%clk 0:02:51]} 8. Ba4 {[%clk 0:02:56]}  e6 {[%clk 0:02:51]} 9. d4 {[%clk 0:02:55]}  cxd4 {[%clk 0:02:49]} 10. exd4 {[%clk 0:02:56]}  Be7 {[%clk 0:02:37]} 11. d5 {[%clk 0:02:56]}  exd5 {[%clk 0:02:26]} 12. cxd5 {[%clk 0:02:57]}  Nb8 {[%clk 0:02:15]} 13. d6 {[%clk 0:02:55]}  Bxa4 {[%clk 0:01:54]} 14. Qxa4+ {[%clk 0:02:56]}  b5 {[%clk 0:01:51]} 15. dxe7 {[%clk 0:02:55]}  Qxe7 {[%clk 0:01:45]} 16. Qh4 {[%clk 0:02:42]}  O-O {[%clk 0:01:44]} 17. Ba3 {[%clk 0:02:42]}  Qe6 {[%clk 0:01:35]} 18. Bxf8 {[%clk 0:02:42]}  Kxf8 {[%clk 0:01:36]} 19. Re1 {[%clk 0:02:40]}  Qd6 {[%clk 0:01:36]} 20. Nc3 {[%clk 0:02:40]}  Nc6 {[%clk 0:01:33]} 21. Rad1 {[%clk 0:02:40]}  Qc5 {[%clk 0:01:31]} 22. Ne4 {[%clk 0:02:38]}  Nxe4 {[%clk 0:01:30]} 23. Qxe4 {[%clk 0:02:38]}  g6 {[%clk 0:01:28]} 24. Rc1 {[%clk 0:02:37]}  Qb4 {[%clk 0:01:14]} 25. Qxc6 {[%clk 0:02:36]}  Qe4 {[%clk 0:01:15]} 26. Rxe4 {[%clk 0:02:36]} 1-0


[Site "https://www.chess.com"]

[Event "Titled Tuesday Blitz March 29 Early 2022"]
[White "Martinez Alcantara, Jose Eduardo"]
[Black "Tristan, Leonardo"]
[WhiteFideId "3805662"]
[BlackFideId "113816"]
[WhiteElo "2690"]
[BlackElo "2404"]
[Result "1-0"]
[Round "04"]
[TimeControl "180+1"]
[Date "2022.03.29"]
[WhiteClock "0:01:49"]
[BlackClock "0:01:12"]

1. c4 {[%clk 0:03:00]}  e6 {[%clk 0:02:58]} 2. g3 {[%clk 0:03:01]}  d5 {[%clk 0:02:58]} 3. Nf3 {[%clk 0:03:02]}  Nf6 {[%clk 0:02:58]} 4. Bg2 {[%clk 0:03:03]}  Be7 {[%clk 0:02:51]} 5. O-O {[%clk 0:03:04]}  O-O {[%clk 0:02:51]} 6. b3 {[%clk 0:03:05]}  a5 {[%clk 0:02:50]} 7. Nc3 {[%clk 0:03:04]}  c6 {[%clk 0:02:50]} 8. Qc2 {[%clk 0:03:04]}  b6 {[%clk 0:02:50]} 9. e3 {[%clk 0:03:05]}  Ba6 {[%clk 0:02:50]} 10. d3 {[%clk 0:03:05]}  Nbd7 {[%clk 0:02:49]} 11. Bb2 {[%clk 0:03:05]}  b5 {[%clk 0:02:49]} 12. Ne2 {[%clk 0:03:00]}  Qb6 {[%clk 0:02:46]} 13. Rab1 {[%clk 0:02:59]}  Rfc8 {[%clk 0:02:46]} 14. Rfd1 {[%clk 0:02:59]}  Rab8 {[%clk 0:02:39]} 15. Bd4 {[%clk 0:02:59]}  Qb7 {[%clk 0:02:32]} 16. Ba1 {[%clk 0:02:58]}  Qa7 {[%clk 0:02:28]} 17. Rbc1 {[%clk 0:02:51]}  Ba3 {[%clk 0:02:25]} 18. Rb1 {[%clk 0:02:51]}  Be7 {[%clk 0:02:25]} 19. Nf4 {[%clk 0:02:51]}  Qc7 {[%clk 0:02:17]} 20. Rbc1 {[%clk 0:02:47]}  Ba3 {[%clk 0:02:16]} 21. Rb1 {[%clk 0:02:48]}  Be7 {[%clk 0:02:16]} 22. Bh3 {[%clk 0:02:48]}  h6 {[%clk 0:02:04]} 23. Rbc1 {[%clk 0:02:37]}  Ba3 {[%clk 0:02:03]} 24. Rb1 {[%clk 0:02:36]}  Be7 {[%clk 0:02:03]} 25. Nd4 {[%clk 0:02:26]}  bxc4 {[%clk 0:01:56]} 26. dxc4 {[%clk 0:02:25]}  dxc4 {[%clk 0:01:53]} 27. Nfxe6 {[%clk 0:02:19]}  cxb3 {[%clk 0:01:45]} 28. Rxb3 {[%clk 0:02:16]}  fxe6 {[%clk 0:01:24]} 29. Nxe6 {[%clk 0:02:17]}  Qa7 {[%clk 0:01:18]} 30. Qg6 {[%clk 0:01:52]}  Bf8 {[%clk 0:01:17]} 31. Nxg7 {[%clk 0:01:53]}  Bxg7 {[%clk 0:01:12]} 32. Rxd7 {[%clk 0:01:50]}  Rxb3 {[%clk 0:01:12]} 33. Qxg7# {[%clk 0:01:49]} 1-0


[Site "https://www.chess.com"]

[Event "Titled Tuesday Blitz March 29 Early 2022"]
[White "Migot, Tangi"]
[Black "Koridze, Lile"]
[WhiteFideId "662445"]
[BlackFideId "13612514"]
[WhiteElo "2529"]
[BlackElo "1999"]
[Result "0-1"]
[Round "04"]
[TimeControl "180+1"]
[Date "2022.03.30"]
[WhiteClock "0:00:37"]
[BlackClock "0:01:42"]

1. e4 {[%clk 0:02:41]}  c5 {[%clk 0:02:59]} 2. Nc3 {[%clk 0:02:41]}  Nc6 {[%clk 0:02:58]} 3. Bc4 {[%clk 0:02:41]}  e6 {[%clk 0:02:58]} 4. d3 {[%clk 0:02:42]}  a6 {[%clk 0:02:57]} 5. a3 {[%clk 0:02:42]}  Nf6 {[%clk 0:02:56]} 6. f4 {[%clk 0:02:41]}  d5 {[%clk 0:02:56]} 7. Ba2 {[%clk 0:02:38]}  dxe4 {[%clk 0:02:55]} 8. Nxe4 {[%clk 0:02:38]}  Be7 {[%clk 0:02:49]} 9. Nf3 {[%clk 0:02:37]}  O-O {[%clk 0:02:45]} 10. O-O {[%clk 0:02:35]}  b6 {[%clk 0:02:43]} 11. Kh1 {[%clk 0:02:30]}  Bb7 {[%clk 0:02:41]} 12. Nxf6+ {[%clk 0:02:25]}  Bxf6 {[%clk 0:02:40]} 13. c3 {[%clk 0:02:25]}  e5 {[%clk 0:02:36]} 14. fxe5 {[%clk 0:02:17]}  Nxe5 {[%clk 0:02:34]} 15. Nxe5 {[%clk 0:02:16]}  Bxe5 {[%clk 0:02:35]} 16. Qh5 {[%clk 0:02:04]}  Qxd3 {[%clk 0:02:31]} 17. Rxf7 {[%clk 0:01:48]}  Kh8 {[%clk 0:02:22]} 18. Bh6 {[%clk 0:01:34]}  Qe4 {[%clk 0:01:54]} 19. Rxb7 {[%clk 0:01:28]}  Qxb7 {[%clk 0:01:53]} 20. Qxe5 {[%clk 0:01:25]}  Rae8 {[%clk 0:01:52]} 21. Qd6 {[%clk 0:00:49]}  gxh6 {[%clk 0:01:50]} 22. Bd5 {[%clk 0:00:48]}  Qe7 {[%clk 0:01:47]} 23. Qxe7 {[%clk 0:00:39]}  Rxe7 {[%clk 0:01:46]} 24. Bf3 {[%clk 0:00:39]}  Rfe8 {[%clk 0:01:43]} 25. Kg1 {[%clk 0:00:37]}  Re1+ {[%clk 0:01:42]} 26. Rxe1 {[%clk 0:00:37]}  Rxe1+ {[%clk 0:01:43]} 27. Kf2 {[%clk 0:00:36]}  Rb1 {[%clk 0:01:43]} 28. b4 {[%clk 0:00:37]}  Rb3 {[%clk 0:01:42]} 0-1


[Site "https://www.chess.com"]

[Event "Titled Tuesday Blitz March 29 Early 2022"]
[White "Mihailidis, Anastasios"]
[Black "Hartikainen, Jarmo"]
[WhiteFideId "4205588"]
[BlackFideId "503134"]
[WhiteElo "2312"]
[BlackElo "2066"]
[Result "1-0"]
[Round "04"]
[TimeControl "180+1"]
[Date "2022.03.30"]
[WhiteClock "0:00:45"]
[BlackClock "0:00:01"]

1. e4 {[%clk 0:03:00]}  c5 {[%clk 0:02:59]} 2. Nf3 {[%clk 0:03:01]}  Nc6 {[%clk 0:02:59]} 3. c4 {[%clk 0:03:01]}  g6 {[%clk 0:02:58]} 4. d4 {[%clk 0:03:00]}  cxd4 {[%clk 0:02:58]} 5. Nxd4 {[%clk 0:03:01]}  Bg7 {[%clk 0:02:58]} 6. Be3 {[%clk 0:03:02]}  Nf6 {[%clk 0:02:54]} 7. Nc3 {[%clk 0:03:02]}  O-O {[%clk 0:02:53]} 8. Be2 {[%clk 0:03:02]}  d6 {[%clk 0:02:45]} 9. O-O {[%clk 0:03:01]}  Bd7 {[%clk 0:02:45]} 10. f3 {[%clk 0:03:00]}  a5 {[%clk 0:02:42]} 11. Qd2 {[%clk 0:03:00]}  a4 {[%clk 0:02:40]} 12. Rac1 {[%clk 0:03:00]}  Qa5 {[%clk 0:02:12]} 13. Rfd1 {[%clk 0:02:54]}  Rfc8 {[%clk 0:01:25]} 14. b3 {[%clk 0:02:46]}  Nxd4 {[%clk 0:00:54]} 15. Bxd4 {[%clk 0:02:44]}  Bc6 {[%clk 0:00:54]} 16. Kh1 {[%clk 0:02:41]}  Rd8 {[%clk 0:00:32]} 17. Bxf6 {[%clk 0:02:24]}  Bxf6 {[%clk 0:00:29]} 18. Nd5 {[%clk 0:02:24]}  Bxd5 {[%clk 0:00:28]} 19. Qxa5 {[%clk 0:02:20]}  Rxa5 {[%clk 0:00:27]} 20. cxd5 {[%clk 0:02:20]}  axb3 {[%clk 0:00:20]} 21. axb3 {[%clk 0:02:21]}  Ra3 {[%clk 0:00:20]} 22. b4 {[%clk 0:02:06]}  Rb3 {[%clk 0:00:18]} 23. b5 {[%clk 0:02:02]}  Ra8 {[%clk 0:00:17]} 24. h3 {[%clk 0:01:57]}  Ra2 {[%clk 0:00:16]} 25. Bf1 {[%clk 0:01:57]}  Rbb2 {[%clk 0:00:16]} 26. Rc7 {[%clk 0:01:52]}  b6 {[%clk 0:00:15]} 27. Rc6 {[%clk 0:01:48]}  Rd2 {[%clk 0:00:15]} 28. Rdc1 {[%clk 0:01:43]}  Bd4 {[%clk 0:00:15]} 29. Rc7 {[%clk 0:01:34]}  Kf8 {[%clk 0:00:14]} 30. Rc8+ {[%clk 0:01:33]}  Kg7 {[%clk 0:00:14]} 31. Re8 {[%clk 0:01:33]}  Kf6 {[%clk 0:00:13]} 32. Kh2 {[%clk 0:01:31]}  Bc5 {[%clk 0:00:13]} 33. Kg3 {[%clk 0:01:28]}  h5 {[%clk 0:00:13]} 34. h4 {[%clk 0:01:26]}  Bd4 {[%clk 0:00:12]} 35. Rec8 {[%clk 0:01:23]}  Be5+ {[%clk 0:00:12]} 36. Kh3 {[%clk 0:01:17]}  Rab2 {[%clk 0:00:11]} 37. R8c6 {[%clk 0:01:06]}  Bd4 {[%clk 0:00:11]} 38. R6c4 {[%clk 0:01:07]}  Bc5 {[%clk 0:00:11]} 39. Re1 {[%clk 0:01:01]}  Rf2 {[%clk 0:00:07]} 40. Rcc1 {[%clk 0:01:00]}  e5 {[%clk 0:00:05]} 41. dxe6 {[%clk 0:00:59]}  fxe6 {[%clk 0:00:05]} 42. Red1 {[%clk 0:00:57]}  g5 {[%clk 0:00:02]} 43. Kg3 {[%clk 0:00:53]}  gxh4+ {[%clk 0:00:02]} 44. Kxh4 {[%clk 0:00:54]}  Rb4 {[%clk 0:00:01]} 45. Rc4 {[%clk 0:00:48]}  d5 {[%clk 0:00:01]} 46. Rxb4 {[%clk 0:00:47]}  Bxb4 {[%clk 0:00:01]} 47. exd5 {[%clk 0:00:48]}  exd5 {[%clk 0:00:01]} 48. g4 {[%clk 0:00:45]} 1-0


[Site "https://www.chess.com"]

[Event "Titled Tuesday Blitz March 29 Early 2022"]
[White "Mikhailovsky, Vladimir"]
[Black "Maung, Maung Kyaw Zaw Hein"]
[WhiteFideId "34105414"]
[BlackFideId "13001698"]
[WhiteElo "2371"]
[BlackElo "1785"]
[Result "1-0"]
[Round "04"]
[TimeControl "180+1"]
[Date "2022.03.30"]
[WhiteClock "0:00:53"]
[BlackClock "0:01:18"]

1. e4 {[%clk 0:03:00]}  c6 {[%clk 0:03:00]} 2. c4 {[%clk 0:02:59]}  d5 {[%clk 0:03:00]} 3. cxd5 {[%clk 0:03:00]}  cxd5 {[%clk 0:03:01]} 4. exd5 {[%clk 0:03:01]}  Nf6 {[%clk 0:03:01]} 5. Qa4+ {[%clk 0:03:01]}  Nbd7 {[%clk 0:02:59]} 6. Nc3 {[%clk 0:03:02]}  a6 {[%clk 0:02:59]} 7. Nf3 {[%clk 0:03:02]}  Rb8 {[%clk 0:02:58]} 8. d4 {[%clk 0:02:58]}  b5 {[%clk 0:02:57]} 9. Qb3 {[%clk 0:02:59]}  Bb7 {[%clk 0:02:55]} 10. Bf4 {[%clk 0:02:58]}  Rc8 {[%clk 0:02:55]} 11. a4 {[%clk 0:02:57]}  Qa5 {[%clk 0:02:24]} 12. Bd2 {[%clk 0:01:45]}  b4 {[%clk 0:02:00]} 13. Na2 {[%clk 0:01:43]}  Nxd5 {[%clk 0:01:44]} 14. Nxb4 {[%clk 0:01:38]}  Nxb4 {[%clk 0:01:39]} 15. Bxb4 {[%clk 0:01:28]}  Qb6 {[%clk 0:01:32]} 16. a5 {[%clk 0:01:28]}  Qc7 {[%clk 0:01:31]} 17. Be2 {[%clk 0:01:24]}  Qc2 {[%clk 0:01:28]} 18. Qxc2 {[%clk 0:01:16]}  Rxc2 {[%clk 0:01:29]} 19. Bc3 {[%clk 0:01:16]}  Be4 {[%clk 0:01:19]} 20. Bxa6 {[%clk 0:00:58]}  e6 {[%clk 0:01:19]} 21. Bb5 {[%clk 0:00:57]}  Bd6 {[%clk 0:01:18]} 22. Ba4 {[%clk 0:00:53]} 1-0


[Site "https://www.chess.com"]

[Event "Titled Tuesday Blitz March 29 Early 2022"]
[White "Mkrtchyan, Mariam"]
[Black "Polster, Christian"]
[WhiteFideId "13310828"]
[BlackFideId "12965081"]
[WhiteElo "1984"]
[BlackElo "2325"]
[Result "1-0"]
[Round "04"]
[TimeControl "180+1"]
[Date "2022.03.30"]
[WhiteClock "0:00:36"]
[BlackClock "0:00:17"]

1. Nf3 {[%clk 0:03:00]}  d5 {[%clk 0:02:59]} 2. g3 {[%clk 0:03:00]}  c5 {[%clk 0:02:58]} 3. Bg2 {[%clk 0:03:01]}  d4 {[%clk 0:02:59]} 4. O-O {[%clk 0:02:59]}  Nf6 {[%clk 0:02:57]} 5. d3 {[%clk 0:02:50]}  Nc6 {[%clk 0:02:57]} 6. e4 {[%clk 0:02:51]}  Bg4 {[%clk 0:02:51]} 7. h3 {[%clk 0:02:47]}  Bxf3 {[%clk 0:02:51]} 8. Qxf3 {[%clk 0:02:47]}  e5 {[%clk 0:02:49]} 9. Qe2 {[%clk 0:02:46]}  Bd6 {[%clk 0:02:43]} 10. Nd2 {[%clk 0:02:44]}  O-O {[%clk 0:02:38]} 11. f4 {[%clk 0:02:42]}  Ne8 {[%clk 0:02:29]} 12. f5 {[%clk 0:02:40]}  Be7 {[%clk 0:02:19]} 13. Nf3 {[%clk 0:02:38]}  Nd6 {[%clk 0:02:17]} 14. g4 {[%clk 0:02:37]}  b5 {[%clk 0:02:11]} 15. g5 {[%clk 0:02:32]}  f6 {[%clk 0:02:07]} 16. h4 {[%clk 0:02:24]}  c4 {[%clk 0:02:04]} 17. Rf2 {[%clk 0:02:15]}  Rc8 {[%clk 0:01:57]} 18. Bf1 {[%clk 0:02:13]}  Nb4 {[%clk 0:01:49]} 19. Qd1 {[%clk 0:02:02]}  Qa5 {[%clk 0:01:31]} 20. Rg2 {[%clk 0:01:48]}  Qa4 {[%clk 0:01:19]} 21. b3 {[%clk 0:01:39]}  cxb3 {[%clk 0:01:16]} 22. cxb3 {[%clk 0:01:36]}  Qa6 {[%clk 0:01:09]} 23. a3 {[%clk 0:01:19]}  Nc6 {[%clk 0:01:01]} 24. h5 {[%clk 0:01:03]}  fxg5 {[%clk 0:00:28]} 25. Bxg5 {[%clk 0:00:58]}  Bxg5 {[%clk 0:00:27]} 26. Nxg5 {[%clk 0:00:59]}  Rf6 {[%clk 0:00:21]} 27. Ne6 {[%clk 0:00:50]}  Ne8 {[%clk 0:00:21]} 28. Be2 {[%clk 0:00:44]}  Na5 {[%clk 0:00:19]} 29. b4 {[%clk 0:00:42]}  Nb7 {[%clk 0:00:18]} 30. Kf2 {[%clk 0:00:40]}  Rc3 {[%clk 0:00:16]} 31. Qd2 {[%clk 0:00:38]}  Rc5 {[%clk 0:00:17]} 32. bxc5 {[%clk 0:00:36]} 1-0


[Site "https://www.chess.com"]

[Event "Titled Tuesday Blitz March 29 Early 2022"]
[White "Moksh Amit Doshi"]
[Black "Paravyan, David"]
[WhiteFideId "25064967"]
[BlackFideId "4194985"]
[WhiteElo "2245"]
[BlackElo "2569"]
[Result "0-1"]
[Round "04"]
[TimeControl "180+1"]
[Date "2022.03.29"]
[WhiteClock "0:01:41"]
[BlackClock "0:02:05"]

1. d4 {[%clk 0:02:45]}  Nf6 {[%clk 0:02:59]} 2. c4 {[%clk 0:02:42]}  g6 {[%clk 0:03:00]} 3. g3 {[%clk 0:02:42]}  c6 {[%clk 0:02:59]} 4. Bg2 {[%clk 0:02:42]}  d5 {[%clk 0:03:00]} 5. cxd5 {[%clk 0:02:42]}  cxd5 {[%clk 0:03:01]} 6. Nc3 {[%clk 0:02:42]}  Bg7 {[%clk 0:03:02]} 7. Nf3 {[%clk 0:02:43]}  Nc6 {[%clk 0:03:02]} 8. O-O {[%clk 0:02:41]}  Ne4 {[%clk 0:03:00]} 9. Bf4 {[%clk 0:02:31]}  O-O {[%clk 0:02:59]} 10. Rc1 {[%clk 0:02:31]}  Nxc3 {[%clk 0:02:53]} 11. Rxc3 {[%clk 0:02:29]}  Bg4 {[%clk 0:02:54]} 12. e3 {[%clk 0:02:22]}  Qb6 {[%clk 0:02:45]} 13. Qb3 {[%clk 0:02:18]}  Qxb3 {[%clk 0:02:38]} 14. Rxb3 {[%clk 0:02:19]}  b6 {[%clk 0:02:34]} 15. Rc1 {[%clk 0:02:16]}  Rac8 {[%clk 0:02:26]} 16. Rbc3 {[%clk 0:02:15]}  Nb4 {[%clk 0:02:09]} 17. a3 {[%clk 0:02:05]}  Nd3 {[%clk 0:02:07]} 18. R3c2 {[%clk 0:01:41]}  Nxc1 {[%clk 0:02:05]} 0-1


[Site "https://www.chess.com"]